fUST/lending_fUST_20250625
["ID","MTS","AMOUNT","RATE_DAILY","PERIOD"]
[367400181,1750782865575,691.8,0.00016438,2]
[367400182,1750782865848,691.8,0.00016712,2]
[367400183,1750782866444,691.8,0.00016986,2]
[367400184,1750782867842,685.02,0.00016438,2]
[367400185,1750782868080,685.02,0.00016712,2]
[367400186,1750782868425,685.02,0.00016986,2]
[367400187,1750782869131,460.0,0.00016438,2]
[367400188,1750782869352,477.85,0.00016438,2]
[367400189,1750782869596,477.85,0.00016712,2]
[367400190,1750782869846,477.85,0.00016986,2]
[367400191,1750782870769,460.48237977,0.00016438,2]
[367400192,1750782872972,460.0,0.00016438,2]
[367400193,1750782874309,460.0,0.00016712,2]
[367400194,1750782874611,460.0,0.00016986,2]
[367400195,1750782882058,607.31986083,0.00016438,2]
[367400196,1750782882418,460.0,0.00016438,2]
[367400197,1750782882717,460.0,0.00016712,2]
[367400198,1750782883062,460.0,0.00016986,2]
[367400199,1750782883465,959.8,0.00016438,2]
[367400200,1750782883744,959.8,0.00016712,2]
[367400201,1750782883990,959.8,0.00016986,2]
[367400202,1750782884399,460.0,0.00016438,2]
[367400203,1750782885412,460.0,0.00016438,2]
[367400204,1750782885477,460.0,0.00016438,2]
[367400205,1750782885711,460.0,0.00016712,2]
[367400206,1750782885781,460.0,0.00016712,2]
[367400207,1750782885956,460.0,0.00016986,2]
[367400208,1750782886026,460.0,0.00016986,2]
[367400209,1750782887341,460.0,0.00016438,2]
[367400210,1750782890540,460.0,0.00016438,2]
[367400211,1750782892033,460.0,0.00016438,2]
[367400212,1750782892275,460.0,0.00016712,2]
[367400213,1750782892568,460.0,0.00016986,2]
[367400214,1750782896959,460.0,0.00016438,2]
[367400215,1750782897768,246.6678369,0.00016438,2]
[367400216,1750782897792,213.3321631,0.00016438,2]
[367400217,1750782898448,666.0,0.00016438,2]
[367400218,1750782901973,465.25954228,0.00016438,2]
[367400219,1750782902002,297.32092264,0.00016438,2]
[367400220,1750782903096,389.69243974,0.00016438,2]
[367400222,1750782905564,306.50088308,0.00016438,2]
[367400223,1750782906688,460.0,0.00016438,2]
[367400224,1750782906765,1035.22,0.00016438,2]
[367400225,1750782907008,460.0,0.00016712,2]
[367400226,1750782907095,1035.22,0.00016712,2]
[367400227,1750782907325,1035.22,0.00016986,2]
[367400228,1750782907358,460.0,0.00016986,2]
[367400229,1750782909297,463.07,0.00016438,2]
[367400230,1750782909705,463.07,0.00016712,2]
[367400231,1750782910009,463.07,0.00016986,2]
[367400232,1750782910796,466.44585582,0.00016438,2]
[367400233,1750782912862,460.0,0.00016438,2]
[367400234,1750782913201,460.0,0.00016712,2]
[367400235,1750782914273,3247.89,0.00016438,2]
[367400236,1750782914547,3247.89,0.00016712,2]
[367400237,1750782914857,3247.89,0.00016986,2]
[367400238,1750782915057,460.0,0.00016438,2]
[367400239,1750782915550,196.90819334,0.00016438,2]
[367400240,1750782915574,1071.07180666,0.00016438,2]
[367400241,1750782915796,1267.98,0.00016712,2]
[367400242,1750782916109,1267.98,0.00016986,2]
[367400243,1750782917010,506.34,0.00016438,2]
[367400244,1750782918802,770.5,0.00016438,2]
[367400245,1750782919014,770.5,0.00016712,2]
[367400246,1750782919286,770.5,0.00016986,2]
[367400247,1750782920469,518.6562237,0.00016438,2]
[367400248,1750782920589,460.0,0.00016438,2]
[367400249,1750782921017,420.0,0.00016712,2]
[367400250,1750782921054,500.0,0.00016676,2]
[367400251,1750782921329,1228.1,0.00016438,2]
[367400252,1750782921585,1228.1,0.00016712,2]
[367400253,1750782921841,1228.1,0.00016986,2]
[367400254,1750782923053,506.16148271,0.00016438,2]
[367400255,1750782924194,460.0,0.00016438,2]
[367400256,1750782925281,460.0,0.00016438,2]
[367400257,1750782925692,500.0,0.00015842,2]
[367400258,1750782930482,445.29749694,0.0001505,2]
[367400259,1750782935856,460.0,0.00016438,2]
[367400260,1750782936015,460.0,0.00016438,2]
[367400261,1750782937012,283.59456401,0.00016438,2]
[367400262,1750782938481,460.0,0.00016438,2]
[367400263,1750782938810,460.0,0.00016712,2]
[367400264,1750782938840,500.0,0.00016438,2]
[367400265,1750782939273,460.0,0.00016986,2]
[367400266,1750782939303,500.0,0.00016438,2]
[367400267,1750782939335,460.0,0.00016438,2]
[367400268,1750782939709,500.0,0.00016438,2]
[367400269,1750782939959,1444.0,0.00023233,120]
[367400270,1750782940025,500.0,0.00016438,2]
[367400271,1750782940278,500.0,0.00016438,2]
[367400272,1750782940416,77.11842598,0.00016438,2]
[367400273,1750782940440,382.88157402,0.00016438,2]
[367400274,1750782940537,500.0,0.00016438,2]
[367400275,1750782940692,460.0,0.00016712,2]
[367400276,1750782940799,500.0,0.00016438,2]
[367400277,1750782940943,510.57644954,0.00016986,2]
[367400278,1750782941075,249.56,0.00016438,2]
[367400279,1750782945699,460.0,0.00016438,2]
[367400280,1750782945952,460.0,0.00016712,2]
[367400281,1750782946228,460.0,0.00016986,2]
[367400282,1750782948229,460.0,0.00016438,2]
[367400283,1750782950137,460.0,0.00016438,2]
[367400284,1750782952061,460.0,0.00016438,2]
[367400285,1750782952365,460.0,0.00016712,2]
[367400286,1750782952756,182.44024143,0.00016444,2]
[367400287,1750782953479,467.85743916,0.00016438,2]
[367400288,1750782953572,460.0,0.00016438,2]
[367400289,1750782953876,460.0,0.00016712,2]
[367400290,1750782954161,460.0,0.00016986,2]
[367400291,1750782954570,729.03120476,0.00016444,2]
[367400292,1750782954880,460.0,0.00016438,2]
[367400293,1750782954952,462.76981906,0.00016712,2]
[367400294,1750782955049,460.0,0.00016438,2]
[367400295,1750782955574,292.74875181,0.00016438,2]
[367400296,1750782956874,1022.34,0.00016438,2]
[367400297,1750782957130,1022.34,0.00016712,2]
[367400298,1750782957389,1022.34,0.00016986,2]
[367400299,1750782957459,460.0,0.00016438,2]
[367400300,1750782957863,460.0,0.00016712,2]
[367400301,1750782958031,460.0,0.00016438,2]
[367400302,1750782958117,460.0,0.00016986,2]
[367400303,1750782958332,460.0,0.00016712,2]
[367400304,1750782958595,460.0,0.00016986,2]
[367400306,1750782961860,460.0,0.00016438,2]
[367400307,1750782962124,460.0,0.00016712,2]
[367400308,1750782962378,603.79,0.00016986,2]
[367400309,1750782962488,289.97845799,0.00016258,2]
[367400310,1750782962708,255.0,0.0001651,2]
[367400311,1750782963033,255.0,0.00016515,2]
[367400312,1750782963345,166.61640198,0.0001652,2]
[367400313,1750782966384,1424.72966025,0.00016438,2]
[367400314,1750782966407,778.85033975,0.00016438,2]
[367400315,1750782966706,2203.58,0.00016712,2]
[367400316,1750782966817,500.0,0.00016438,2]
[367400317,1750782966967,2203.58,0.00016986,2]
[367400318,1750782967072,420.0,0.00016438,2]
[367400319,1750782969086,460.0,0.00016438,2]
[367400320,1750782970068,278.15543846,0.00016438,2]
[367400321,1750782974736,461.44746572,0.00016438,2]
[367400322,1750782974764,350.0,0.00016438,2]
[367400323,1750782976745,437.42308816,0.00016438,2]
[367400324,1750782980340,460.0,0.00016438,2]
[367400325,1750782980374,460.0,0.00016438,2]
[367400326,1750782980640,460.0,0.00016712,2]
[367400327,1750782980938,460.0,0.00016986,2]
[367400328,1750782981207,512.15038699,0.00016438,2]
[367400329,1750782983930,460.0,0.00016438,2]
[367400330,1750782984208,460.0,0.00016712,2]
[367400331,1750782984471,460.0,0.00016986,2]
[367400332,1750782985871,460.0,0.00016438,2]
[367400333,1750782986140,460.0,0.00016712,2]
[367400334,1750782986389,460.0,0.00016986,2]
[367400335,1750782987463,6433.85,0.00016438,2]
[367400336,1750782987698,360.96328092,0.00016712,2]
[367400337,1750782987724,6072.88671908,0.00016712,2]
[367400338,1750782988250,6433.85,0.00016986,2]
[367400340,1750782994804,460.0,0.00016438,2]
[367400341,1750782996733,460.0,0.00016438,2]
[367400342,1750782996964,460.0,0.00016712,2]
[367400343,1750782999033,460.0,0.00016438,2]
[367400344,1750782999557,460.0,0.00016712,2]
[367400345,1750782999919,460.0,0.00016986,2]
[367400346,1750783001620,460.0,0.00016438,2]
[367400347,1750783001689,460.0,0.00016438,2]
[367400348,1750783001859,460.0,0.00016438,2]
[367400349,1750783001889,460.0,0.00016712,2]
[367400350,1750783001960,460.0,0.00016712,2]
[367400351,1750783002145,460.0,0.00016986,2]
[367400352,1750783002991,460.0,0.00016986,2]
[367400353,1750783005062,460.0,0.00016438,2]
[367400354,1750783005462,460.0,0.00016712,2]
[367400355,1750783005804,333.7,0.00016986,2]
[367400356,1750783007786,259.56328092,0.00016438,2]
[367400357,1750783007809,1260.33671908,0.00016438,2]
[367400358,1750783008052,1519.9,0.00016712,2]
[367400359,1750783008368,1519.9,0.00016986,2]
[367400360,1750783011872,500.0,0.00016438,2]
[367400361,1750783013962,882.5,0.00016438,2]
[367400362,1750783014216,882.5,0.00016712,2]
[367400363,1750783014481,882.5,0.00016986,2]
[367400364,1750783017495,1037.45,0.00016438,2]
[367400365,1750783017755,1037.45,0.00016712,2]
[367400366,1750783018021,1037.45,0.00016986,2]
[367400367,1750783020015,1140.94,0.00016438,2]
[367400368,1750783020323,1140.94,0.00016712,2]
[367400369,1750783020479,460.0,0.00016438,2]
[367400370,1750783020748,460.0,0.00016712,2]
[367400371,1750783021374,468.08926014,0.00016986,2]
[367400372,1750783021419,1140.94,0.00016986,2]
[367400373,1750783025173,460.0,0.00016438,2]
[367400374,1750783025442,460.0,0.00016438,2]
[367400375,1750783025709,460.0,0.00016712,2]
[367400376,1750783025958,460.0,0.00016986,2]
[367400377,1750783026786,419.29738682,0.00016438,2]
[367400378,1750783030346,198.87711323,0.00016438,2]
[367400379,1750783030479,460.0,0.00016438,2]
[367400380,1750783030528,678.32,0.00016438,2]
[367400381,1750783030766,678.32,0.00016712,2]
[367400382,1750783031003,354.28952073,0.00016986,2]
[367400383,1750783031035,324.03047927,0.00016986,2]
[367400384,1750783032076,750.76,0.00016438,2]
[367400385,1750783032338,750.76,0.00016712,2]
[367400386,1750783032586,750.76,0.00016986,2]
[367400387,1750783035469,460.0,0.00016438,2]
[367400388,1750783036025,460.0,0.00016438,2]
[367400389,1750783036275,460.0,0.00016712,2]
[367400390,1750783036566,460.0,0.00016986,2]
[367400391,1750783040921,818.63,0.00016438,2]
[367400392,1750783041162,818.63,0.00016712,2]
[367400393,1750783041420,818.63,0.00016986,2]
[367400394,1750783041772,460.0,0.00016438,2]
[367400395,1750783049336,597.82,0.00016438,2]
[367400396,1750783049584,440.0,0.00016438,2]
[367400397,1750783049613,597.82,0.00016712,2]
[367400398,1750783049916,597.82,0.00016986,2]
[367400399,1750783050630,460.0,0.00016438,2]
[367400400,1750783050968,449.63948808,0.00016438,2]
[367400401,1750783051069,460.0,0.00016438,2]
[367400402,1750783064645,460.0,0.00016438,2]
[367400403,1750783064931,235.93683638,0.00016712,2]
[367400404,1750783066772,839.83,0.00016438,2]
[367400405,1750783067080,839.83,0.00016712,2]
[367400406,1750783067335,839.83,0.00016986,2]
[367400407,1750783068763,460.0,0.00016438,2]
[367400408,1750783074180,460.0,0.00016438,2]
[367400409,1750783081002,460.0,0.00016438,2]
[367400410,1750783081875,460.0,0.00016438,2]
[367400411,1750783082134,460.0,0.00016712,2]
[367400412,1750783082234,460.0,0.00016438,2]
[367400413,1750783084731,460.0,0.00016438,2]
[367400414,1750783084988,460.0,0.00016712,2]
[367400415,1750783085250,460.0,0.00016986,2]
[367400416,1750783086047,460.0,0.00016438,2]
[367400417,1750783086110,1249.27319627,0.00016438,2]
[367400418,1750783086133,1710.86680373,0.00016438,2]
[367400419,1750783086294,460.0,0.00016712,2]
[367400420,1750783086393,2960.14,0.00016712,2]
[367400421,1750783086559,460.0,0.00016986,2]
[367400422,1750783086670,2960.14,0.00016986,2]
[367400423,1750783094595,460.0,0.00016438,2]
[367400424,1750783095874,629.21,0.00016438,2]
[367400425,1750783095956,1074.59,0.00016438,2]
[367400426,1750783096409,629.21,0.00016712,2]
[367400427,1750783096456,1074.59,0.00016712,2]
[367400428,1750783096769,1074.59,0.00016986,2]
[367400429,1750783096826,629.21,0.00016986,2]
[367400430,1750783105787,460.0,0.00016438,2]
[367400431,1750783106083,460.0,0.00016712,2]
[367400432,1750783106192,460.0,0.00016438,2]
[367400433,1750783106355,460.0,0.00016986,2]
[367400434,1750783111535,460.0,0.00016438,2]
[367400435,1750783113616,237.55222512,0.00016438,2]
[367400436,1750783113754,460.0,0.00016438,2]
[367400437,1750783113909,460.0,0.00016712,2]
[367400438,1750783115577,2419.90097115,0.00016438,2]
[367400439,1750783115601,3209.71902885,0.00016438,2]
[367400440,1750783115851,5629.62,0.00016712,2]
[367400441,1750783115879,460.0,0.00016438,2]
[367400442,1750783115911,460.0,0.00016438,2]
[367400443,1750783116132,5629.62,0.00016986,2]
[367400444,1750783116472,460.0,0.00016712,2]
[367400445,1750783116723,460.0,0.00016986,2]
[367400446,1750783119361,509.86614898,0.00016438,2]
[367400447,1750783126275,460.0,0.00016438,2]
[367400448,1750783126334,460.0,0.00016438,2]
[367400449,1750783126541,460.0,0.00016712,2]
[367400450,1750783126581,460.0,0.00016712,2]
[367400451,1750783126792,460.0,0.00016986,2]
[367400452,1750783127219,881.17482217,0.00016438,2]
[367400453,1750783127242,690.25517783,0.00016438,2]
[367400454,1750783127498,1571.43,0.00016712,2]
[367400455,1750783127747,1571.43,0.00016986,2]
[367400456,1750783128190,460.0,0.00016438,2]
[367400457,1750783128683,466.49170912,0.00016438,2]
[367400458,1750783128967,460.0,0.00016438,2]
[367400459,1750783129426,460.0,0.00016712,2]
[367400460,1750783129714,894.55,0.00016438,2]
[367400461,1750783129744,460.0,0.00016986,2]
[367400462,1750783129996,894.55,0.00016712,2]
[367400463,1750783130025,460.0,0.00016438,2]
[367400465,1750783130295,460.0,0.00016712,2]
[367400466,1750783130548,460.0,0.00016986,2]
[367400467,1750783130678,894.55,0.00016986,2]
[367400468,1750783134710,460.0,0.00016438,2]
[367400469,1750783134980,460.0,0.00016712,2]
[367400470,1750783136637,1109.49,0.00016438,2]
[367400471,1750783136917,1109.49,0.00016712,2]
[367400472,1750783137288,1109.49,0.00016986,2]
[367400473,1750783137587,460.0,0.00016986,2]
[367400474,1750783141580,460.0,0.00016438,2]
[367400475,1750783148128,460.0,0.00016438,2]
[367400476,1750783148346,513.8729578,0.00016438,2]
[367400477,1750783149683,460.0,0.00016438,2]
[367400478,1750783149958,460.0,0.00016712,2]
[367400479,1750783152569,907.76,0.00016438,2]
[367400480,1750783152838,907.76,0.00016712,2]
[367400481,1750783152907,460.0,0.00016438,2]
[367400482,1750783153110,458.88015525,0.00016986,2]
[367400483,1750783153134,448.87984475,0.00016986,2]
[367400484,1750783158367,460.0,0.00016438,2]
[367400485,1750783158703,489.0332452,0.00016712,2]
[367400486,1750783161743,460.0,0.00016438,2]
[367400487,1750783162014,460.0,0.00016712,2]
[367400488,1750783162274,460.0,0.00016986,2]
[367400489,1750783165041,460.0,0.00016438,2]
[367400490,1750783165312,460.0,0.00016712,2]
[367400491,1750783165608,460.0,0.00016986,2]
[367400492,1750783166536,460.0,0.00016438,2]
[367400493,1750783166838,460.0,0.00016712,2]
[367400494,1750783167098,460.0,0.00016986,2]
[367400495,1750783171044,513.72,0.00016438,2]
[367400497,1750783171954,460.0,0.00016438,2]
[367400498,1750783174102,460.0,0.00016438,2]
[367400499,1750783174344,460.0,0.00016712,2]
[367400500,1750783174742,460.0,0.00016986,2]
[367400501,1750783176788,460.0,0.00016438,2]
[367400502,1750783177342,460.0,0.00016712,2]
[367400503,1750783178700,460.0,0.00016438,2]
[367400504,1750783178971,460.0,0.00016712,2]
[367400505,1750783179414,460.0,0.00016986,2]
[367400506,1750783181816,646.25,0.00016438,2]
[367400507,1750783182081,646.25,0.00016712,2]
[367400508,1750783182323,646.25,0.00016986,2]
[367400509,1750783182351,460.0,0.00016438,2]
[367400510,1750783182767,460.0,0.00016712,2]
[367400511,1750783183509,1194.64,0.00016438,2]
[367400512,1750783184426,460.0,0.00016986,2]
[367400513,1750783185274,460.0,0.00016438,2]
[367400514,1750783185342,460.0,0.00016712,2]
[367400515,1750783185656,2724.97,0.00016438,2]
[367400516,1750783185718,460.0,0.00016986,2]
[367400517,1750783185890,1190.00691005,0.00016712,2]
[367400518,1750783185915,1534.96308995,0.00016712,2]
[367400519,1750783186160,2724.97,0.00016986,2]
[367400520,1750783186276,865.95,0.00016438,2]
[367400521,1750783186430,998.33,0.00016438,2]
[367400522,1750783186665,865.95,0.00016712,2]
[367400523,1750783186695,1194.64,0.00016712,2]
[367400524,1750783186924,1194.64,0.00016986,2]
[367400525,1750783186968,865.95,0.00016986,2]
[367400526,1750783187034,998.33,0.00016712,2]
[367400527,1750783187402,998.33,0.00016986,2]
[367400528,1750783187498,460.0,0.00016438,2]
[367400529,1750783187765,460.0,0.00016712,2]
[367400530,1750783188044,460.0,0.00016986,2]
[367400531,1750783192772,460.0,0.00016438,2]
[367400532,1750783192985,460.0,0.00016712,2]
[367400533,1750783193232,460.0,0.00016986,2]
[367400534,1750783193304,460.0,0.00016438,2]
[367400536,1750783197147,460.0,0.00016438,2]
[367400537,1750783197412,460.0,0.00016712,2]
[367400538,1750783197678,460.0,0.00016986,2]
[367400539,1750783203779,460.0,0.00016438,2]
[367400540,1750783204065,300.0,0.00016438,2]
[367400541,1750783204622,460.0,0.00016712,2]
[367400542,1750783205081,460.0,0.00016986,2]
[367400543,1750783205415,523.1,0.00016438,2]
[367400545,1750783205652,523.1,0.00016712,2]
[367400546,1750783205931,431.74691005,0.00016986,2]
[367400547,1750783205956,91.35308995,0.00016986,2]
[367400549,1750783211237,701.66,0.00016438,2]
[367400550,1750783211485,701.66,0.00016712,2]
[367400551,1750783211755,701.66,0.00016986,2]
[367400552,1750783216110,460.0,0.00016438,2]
[367400553,1750783217266,460.0,0.00016712,2]
[367400554,1750783217561,460.0,0.00016986,2]
[367400555,1750783217741,460.0,0.00016438,2]
[367400556,1750783221975,460.0,0.00016438,2]
[367400557,1750783222037,460.0,0.00016438,2]
[367400558,1750783222276,544.74,0.00016712,2]
[367400559,1750783222434,460.0,0.00016712,2]
[367400560,1750783222893,518.40859728,0.00016438,2]
[367400561,1750783222951,460.0,0.00016986,2]
[367400562,1750783224844,601.553839,0.00016234,2]
[367400563,1750783227637,661.44,0.00016438,2]
[367400565,1750783228085,661.44,0.00016712,2]
[367400566,1750783228354,661.44,0.00016986,2]
[367400567,1750783229662,387.90137834,0.00016438,2]
[367400568,1750783233762,460.0,0.00016438,2]
[367400569,1750783235638,451.59043018,0.00016438,2]
[367400570,1750783236503,4925.92,0.00016438,2]
[367400571,1750783236632,4249.23266525,0.00016712,2]
[367400572,1750783236657,676.68733475,0.00016712,2]
[367400573,1750783236921,4925.92,0.00016986,2]
[367400574,1750783240767,460.0,0.00016438,2]
[367400575,1750783241015,460.0,0.00016712,2]
[367400576,1750783241265,460.0,0.00016986,2]
[367400577,1750783242216,460.0,0.00016438,2]
[367400578,1750783243655,2590.12,0.00016438,2]
[367400579,1750783243952,2590.12,0.00016712,2]
[367400580,1750783244264,2590.12,0.00016986,2]
[367400582,1750783248901,460.0,0.00016438,2]
[367400583,1750783249152,460.0,0.00016712,2]
[367400584,1750783249408,460.0,0.00016986,2]
[367400585,1750783260967,197.35884086,0.00016438,2]
[367400586,1750783263518,2139.23,0.00016438,2]
[367400587,1750783263833,1070.44382439,0.00016712,2]
[367400588,1750783263859,1068.78617561,0.00016712,2]
[367400589,1750783264074,2139.23,0.00016986,2]
[367400590,1750783264246,460.0,0.00016438,2]
[367400591,1750783264554,460.0,0.00016712,2]
[367400592,1750783264790,460.0,0.00016986,2]
[367400593,1750783265365,460.0,0.00016438,2]
[367400594,1750783265946,517.47232808,0.00016438,2]
[367400595,1750783270450,460.0,0.00016438,2]
[367400596,1750783270705,460.0,0.00016712,2]
[367400597,1750783270990,460.0,0.00016986,2]
[367400598,1750783271566,794.29,0.00016438,2]
[367400599,1750783271838,794.29,0.00016712,2]
[367400600,1750783272445,794.29,0.00016986,2]
[367400601,1750783276112,200.0,0.0001726,10]
[367400602,1750783276514,200.0,0.0001726,10]
[367400603,1750783276858,789.56,0.00016438,2]
[367400604,1750783276902,200.0,0.0001726,10]
[367400605,1750783277099,789.56,0.00016712,2]
[367400606,1750783277231,200.0,0.0001726,10]
[367400607,1750783277549,789.56,0.00016986,2]
[367400608,1750783277766,460.0,0.00016438,2]
[367400609,1750783277808,200.0,0.0001726,10]
[367400610,1750783283254,460.0,0.00016438,2]
[367400611,1750783286136,467.62,0.00016438,2]
[367400612,1750783286531,467.62,0.00016712,2]
[367400613,1750783286804,467.62,0.00016986,2]
[367400614,1750783288948,656.92,0.00016438,2]
[367400615,1750783289726,656.92,0.00016712,2]
[367400616,1750783289998,656.92,0.00016986,2]
[367400617,1750783295565,508.86,0.00016438,2]
[367400618,1750783295820,508.86,0.00016712,2]
[367400619,1750783296070,508.86,0.00016986,2]
[367400620,1750783296973,1375.0,0.00016438,2]
[367400621,1750783297031,1107.76149631,0.00016712,2]
[367400622,1750783297055,267.23850369,0.00016712,2]
[367400623,1750783297622,1375.0,0.00016986,2]
[367400624,1750783297710,460.0,0.00016438,2]
[367400625,1750783298124,460.0,0.00016712,2]
[367400626,1750783298257,460.0,0.00016986,2]
[367400627,1750783300982,460.0,0.00016438,2]
[367400628,1750783304236,460.0,0.00016438,2]
[367400629,1750783305439,460.0,0.00016438,2]
[367400630,1750783314755,596.38,0.00016438,2]
[367400631,1750783317529,460.0,0.00016438,2]
[367400633,1750783318199,694.67,0.00016438,2]
[367400634,1750783318842,694.67,0.00016712,2]
[367400635,1750783319536,460.0,0.00016438,2]
[367400636,1750783319612,694.67,0.00016986,2]
[367400637,1750783325164,460.0,0.00016438,2]
[367400638,1750783325412,460.0,0.00016712,2]
[367400639,1750783325669,460.0,0.00016986,2]
[367400640,1750783329932,734.85,0.00016438,2]
[367400641,1750783330232,734.85,0.00016712,2]
[367400642,1750783330494,734.85,0.00016986,2]
[367400643,1750783332448,2266.35,0.00016438,2]
[367400645,1750783332701,2841.9,0.00016438,2]
[367400646,1750783332972,2841.9,0.00016712,2]
[367400647,1750783333587,462.67149631,0.00016986,2]
[367400648,1750783333610,2379.22850369,0.00016986,2]
[367400649,1750783335430,2266.35,0.00016712,2]
[367400650,1750783335693,2266.35,0.00016986,2]
[367400651,1750783343319,463.04237398,0.00016438,2]
[367400652,1750783344396,460.0,0.00016438,2]
[367400653,1750783346790,460.0,0.00016712,2]
[367400654,1750783347027,460.0,0.00016986,2]
[367400655,1750783347092,460.0,0.00016438,2]
[367400656,1750783347148,460.0,0.00016438,2]
[367400657,1750783353411,460.0,0.00016438,2]
[367400658,1750783354001,1045.31,0.00016438,2]
[367400659,1750783354283,1045.31,0.00016712,2]
[367400660,1750783354315,460.0,0.00016712,2]
[367400661,1750783354468,460.0,0.00016438,2]
[367400662,1750783354571,1045.31,0.00016986,2]
[367400663,1750783354602,460.0,0.00016986,2]
[367400664,1750783354793,460.0,0.00016712,2]
[367400665,1750783355489,460.0,0.00016438,2]
[367400666,1750783355713,460.0,0.00016986,2]
[367400667,1750783355753,460.0,0.00016712,2]
[367400668,1750783356192,460.0,0.00016986,2]
[367400669,1750783356346,940.26,0.00016438,2]
[367400670,1750783356587,940.26,0.00016712,2]
[367400671,1750783356844,940.26,0.00016986,2]
[367400672,1750783358635,228.31912233,0.00016438,2]
[367400673,1750783358659,231.68087767,0.00016438,2]
[367400674,1750783358929,460.0,0.00016712,2]
[367400675,1750783359212,460.0,0.00016986,2]
[367400676,1750783360267,497.34911639,0.00016438,2]
[367400677,1750783361735,2384.34,0.00016438,2]
[367400678,1750783367797,460.0,0.00016438,2]
[367400679,1750783368044,460.0,0.00016712,2]
[367400681,1750783368327,460.0,0.00016986,2]
[367400682,1750783369833,14586.63000594,0.00016251,2]
[367400683,1750783369860,10313.36999406,0.00016251,2]
[367400684,1750783370341,460.0,0.00016438,2]
[367400685,1750783370581,460.0,0.00016712,2]
[367400686,1750783371184,460.0,0.00016986,2]
[367400687,1750783372263,460.0,0.00016438,2]
[367400688,1750783375764,460.0,0.00016438,2]
[367400689,1750783376263,493.56164806,0.00016712,2]
[367400690,1750783379445,557.54,0.00016438,2]
[367400691,1750783387594,731.31,0.00016438,2]
[367400692,1750783387827,731.31,0.00016712,2]
[367400693,1750783388081,731.31,0.00016986,2]